{"text_format":"1","workbook":"xlsx","n_sheets":3,"sheets":["ورقة1","ناجح","مكمل"],"not_rendered":{"charts":0,"images":0,"macros":1,"external_links":0,"defined_names":1,"comments":0,"pivot_tables":0},"unopened":[],"bounds":{"document_bytes":16777216,"sheet_cells":100000,"rows_first":2000,"rows_last":500,"rows_between":2000,"halvings":0,"cell_chars":16384,"cell_head_chars":4096},"cells_cut":0,"cells_raw":0,"read":"whole","date_system":"1900"}

{"sheet":"ورقة1","index":0,"n_rows":150,"n_cols":25,"rows_kept":150,"cut":false,"hidden":false,"merged":[[0,14,0,24]]}
["ت","رقم القيد","المواليد","الاسم","إسلامية","قراءة","رياضيات","إنكليزي","علوم","فنية","رياضة",null,"النتيجة","عدد المواد المكملة","المواد المكملة"]
[1,null,null,"وليد",9,8,4,3,4,8,9,null,"مكمل",{"$f":"IF(A2=\"\",\"\",COUNTIF($E2:$K2,\"<\"&50))","v":7},{"$f":"IF(A2=\"\",\"\",IF(AND(E2<50),$E$1,\"\"))","v":"إسلامية"},{"$f":"IF(A2=\"\",\"\",IF(AND(E2<50),$E$1,\"\"))","v":"إسلامية"},{"$f":"IF(A2=\"\",\"\",IF(AND(D2<50),$D$1,\"\"))","v":""},{"$f":"IF(A2=\"\",\"\",IF(AND(E2<50),$E$1,\"\"))","v":"إسلامية"},{"$f":"IF(A2=\"\",\"\",IF(AND(F2<50),$F$1,\"\"))","v":"قراءة"},{"$f":"IF(A2=\"\",\"\",IF(AND(G2<50),$G$1,\"\"))","v":"رياضيات"},{"$f":"IF(A2=\"\",\"\",IF(AND(H2<50),$H$1,\"\"))","v":"إنكليزي"},{"$f":"IF(A2=\"\",\"\",IF(AND(I2<50),$I$1,\"\"))","v":"علوم"},{"$f":"IF(A2=\"\",\"\",IF(AND(J2<50),$J$1,\"\"))","v":"فنية"},{"$f":"IF(A2=\"\",\"\",IF(AND(K2<50),$K$1,\"\"))","v":"رياضة"},{"$f":"IF(A2=\"\",\"\",IF(AND(L2<50),$L$1,\"\"))","v":0}]
[2,null,null,"بلال",9,9,7,7,9,10,10,null,"ناجح",{"$f":"IF(A3=\"\",\"\",COUNTIF($E3:$K3,\"<\"&50))","v":7},{"$f":"IF(A3=\"\",\"\",IF(AND(E3<50),$E$1,\"\"))","v":"إسلامية"},{"$f":"IF(A3=\"\",\"\",IF(AND(C3<50),$C$1,\"\"))","v":"المواليد"},{"$f":"IF(A3=\"\",\"\",IF(AND(D3<50),$D$1,\"\"))","v":""},{"$f":"IF(A3=\"\",\"\",IF(AND(E3<50),$E$1,\"\"))","v":"إسلامية"},{"$f":"IF(A3=\"\",\"\",IF(AND(F3<50),$F$1,\"\"))","v":"قراءة"},{"$f":"IF(A3=\"\",\"\",IF(AND(G3<50),$G$1,\"\"))","v":"رياضيات"},{"$f":"IF(A3=\"\",\"\",IF(AND(H3<50),$H$1,\"\"))","v":"إنكليزي"},{"$f":"IF(A3=\"\",\"\",IF(AND(I3<50),$I$1,\"\"))","v":"علوم"},{"$f":"IF(A3=\"\",\"\",IF(AND(J3<50),$J$1,\"\"))","v":"فنية"},{"$f":"IF(A3=\"\",\"\",IF(AND(K3<50),$K$1,\"\"))","v":"رياضة"},{"$f":"IF(A3=\"\",\"\",IF(AND(L3<50),$L$1,\"\"))","v":0}]
[3,null,null,"ماهر",5,4,3,3,4,6,5,null,"راسب",7,"إسلامية",{"$f":"IF(A4=\"\",\"\",IF(AND(C4<50),$C$1,\"\"))","v":"المواليد"},"","إسلامية","قراءة","رياضيات","إنكليزي","علوم","فنية","رياضة",0]
[4,null,null,"علي",9,8,4,3,9,8,9,null,{"$f":"IF(A5=\"\",\"\",IF(SUMPRODUCT(--($E$5:$K$5<50))=0,\"ناجح\",\"مكمل\"))","v":"مكمل"},7,"إسلامية","المواليد","","إسلامية","قراءة","رياضيات","إنكليزي","علوم","فنية","رياضة",0]
[5,null,null,null,null,null,null,null,null,null,null,null,{"$f":"IF(A6=\"\",\"\",IF(SUMPRODUCT(--($E$5:$K$5<50))=0,\"ناجح\",\"مكمل\"))","v":"مكمل"},{"$f":"IF(A6=\"\",\"\",COUNTIF($E6:$K6,\"<\"&50))","v":0},"إسلامية","المواليد","الاسم","إسلامية","قراءة","رياضيات","إنكليزي","علوم","فنية","رياضة",0]
[6,null,null,null,null,null,null,null,null,null,null,null,"مكمل",{"$f":"IF(A7=\"\",\"\",COUNTIF($E7:$K7,\"<\"&50))","v":0},{"$f":"IF(A7=\"\",\"\",IF(AND(E7<50),$E$1,\"\"))","v":"إسلامية"},"المواليد","الاسم","إسلامية","قراءة","رياضيات","إنكليزي","علوم","فنية","رياضة",0]
[7,null,null,null,null,null,null,null,null,null,null,null,"مكمل",0,"إسلامية","المواليد","الاسم","إسلامية","قراءة","رياضيات","إنكليزي","علوم","فنية","رياضة",0]
[8,null,null,null,null,null,null,null,null,null,null,null,"مكمل",0,"إسلامية","المواليد","الاسم","إسلامية","قراءة","رياضيات","إنكليزي","علوم","فنية","رياضة",0]
[9,null,null,null,null,null,null,null,null,null,null,null,"مكمل",0,"إسلامية","المواليد","الاسم","إسلامية","قراءة","رياضيات","إنكليزي","علوم","فنية","رياضة",0]
[10,null,null,null,null,null,null,null,null,null,null,null,"مكمل",0,"إسلامية","المواليد","الاسم","إسلامية","قراءة","رياضيات","إنكليزي","علوم","فنية","رياضة",0]
[11,null,null,null,null,null,null,null,null,null,null,null,"مكمل",{"$f":"IF(A12=\"\",\"\",COUNTIF($E12:$K12,\"<\"&50))","v":0},"إسلامية","المواليد","الاسم","إسلامية","قراءة","رياضيات","إنكليزي","علوم","فنية","رياضة",0]
[12,null,null,null,null,null,null,null,null,null,null,null,"مكمل",0,{"$f":"IF(A13=\"\",\"\",IF(AND(B13<50),$B$1,\"\"))","v":"رقم القيد"},"المواليد","الاسم","إسلامية","قراءة","رياضيات","إنكليزي","علوم","فنية","رياضة",0]
[13,null,null,null,null,null,null,null,null,null,null,null,"مكمل",0,"رقم القيد","المواليد","الاسم","إسلامية","قراءة","رياضيات","إنكليزي","علوم","فنية","رياضة",0]
[14,null,null,null,null,null,null,null,null,null,null,null,{"$f":"IF(A15=\"\",\"\",IF(SUMPRODUCT(--(E15:K15<50))=0,\"ناجح\",\"مكمل\"))","v":"مكمل"},0,"رقم القيد","المواليد","الاسم","إسلامية","قراءة","رياضيات","إنكليزي","علوم","فنية","رياضة",0]
[15,null,null,null,null,null,null,null,null,null,null,null,"مكمل",{"$f":"IF(A16=\"\",\"\",COUNTIF($B16:$L16,\"<\"&50))","v":0},"رقم القيد","المواليد","الاسم","إسلامية","قراءة","رياضيات","إنكليزي","علوم","فنية","رياضة",0]
[16,null,null,null,null,null,null,null,null,null,null,null,"مكمل",0,"رقم القيد","المواليد","الاسم","إسلامية","قراءة","رياضيات","إنكليزي","علوم","فنية","رياضة",0]
[17,null,null,null,null,null,null,null,null,null,null,null,"مكمل",0,"رقم القيد","المواليد","الاسم","إسلامية","قراءة","رياضيات","إنكليزي","علوم","فنية","رياضة",0]
[18,null,null,null,null,null,null,null,null,null,null,null,"مكمل",0,"رقم القيد","المواليد","الاسم","إسلامية","قراءة","رياضيات","إنكليزي","علوم","فنية","رياضة",0]
[19,null,null,null,null,null,null,null,null,null,null,null,"مكمل",0,"رقم القيد","المواليد","الاسم","إسلامية","قراءة","رياضيات","إنكليزي","علوم","فنية","رياضة",0]
[20,null,null,null,null,null,null,null,null,null,null,null,{"$f":"IF(A21=\"\",\"\",IF(SUMPRODUCT(--(B21:L21<50))=0,\"ناجح\",\"مكمل\"))","v":"مكمل"},0,"رقم القيد","المواليد","الاسم","إسلامية","قراءة","رياضيات","إنكليزي","علوم","فنية","رياضة",0]
[21,null,null,null,null,null,null,null,null,null,null,null,"مكمل",0,"رقم القيد","المواليد","الاسم","إسلامية","قراءة","رياضيات","إنكليزي","علوم","فنية","رياضة",0]
[22,null,null,null,null,null,null,null,null,null,null,null,"مكمل",0,"رقم القيد","المواليد","الاسم","إسلامية","قراءة","رياضيات","إنكليزي","علوم","فنية","رياضة",0]
[23,null,null,null,null,null,null,null,null,null,null,null,"مكمل",0,"رقم القيد","المواليد","الاسم","إسلامية","قراءة","رياضيات","إنكليزي","علوم","فنية","رياضة",0]
[24,null,null,null,null,null,null,null,null,null,null,null,"مكمل",0,"رقم القيد","المواليد","الاسم","إسلامية","قراءة","رياضيات","إنكليزي","علوم","فنية","رياضة",0]
[25,null,null,null,null,null,null,null,null,null,null,null,"مكمل",0,"رقم القيد","المواليد","الاسم","إسلامية","قراءة","رياضيات","إنكليزي","علوم","فنية","رياضة",0]
[26,null,null,null,null,null,null,null,null,null,null,null,"مكمل",0,"رقم القيد","المواليد","الاسم","إسلامية","قراءة","رياضيات","إنكليزي","علوم","فنية","رياضة",0]
[27,null,null,null,null,null,null,null,null,null,null,null,"مكمل",0,"رقم القيد","المواليد","الاسم","إسلامية","قراءة","رياضيات","إنكليزي","علوم","فنية","رياضة",0]
[28,null,null,null,null,null,null,null,null,null,null,null,"مكمل",0,"رقم القيد","المواليد","الاسم","إسلامية","قراءة","رياضيات","إنكليزي","علوم","فنية","رياضة",0]
[29,null,null,null,null,null,null,null,null,null,null,null,"مكمل",0,"رقم القيد","المواليد","الاسم","إسلامية","قراءة","رياضيات","إنكليزي","علوم","فنية","رياضة",0]
[30,null,null,null,null,null,null,null,null,null,null,null,"مكمل",0,"رقم القيد","المواليد","الاسم","إسلامية","قراءة","رياضيات","إنكليزي","علوم","فنية","رياضة",0]
[31,null,null,null,null,null,null,null,null,null,null,null,"مكمل",0,"رقم القيد","المواليد","الاسم","إسلامية","قراءة","رياضيات","إنكليزي","علوم","فنية","رياضة",0]
[32,null,null,null,null,null,null,null,null,null,null,null,"مكمل",0,"رقم القيد","المواليد","الاسم","إسلامية","قراءة","رياضيات","إنكليزي","علوم","فنية","رياضة",0]
[33,null,null,null,null,null,null,null,null,null,null,null,"مكمل",0,"رقم القيد","المواليد","الاسم","إسلامية","قراءة","رياضيات","إنكليزي","علوم","فنية","رياضة",0]
[34,null,null,null,null,null,null,null,null,null,null,null,"مكمل",0,"رقم القيد","المواليد","الاسم","إسلامية","قراءة","رياضيات","إنكليزي","علوم","فنية","رياضة",0]
[35,null,null,null,null,null,null,null,null,null,null,null,"مكمل",0,"رقم القيد","المواليد","الاسم","إسلامية","قراءة","رياضيات","إنكليزي","علوم","فنية","رياضة",0]
[36,null,null,null,null,null,null,null,null,null,null,null,"مكمل",0,"رقم القيد","المواليد","الاسم","إسلامية","قراءة","رياضيات","إنكليزي","علوم","فنية","رياضة",0]
[37,null,null,null,null,null,null,null,null,null,null,null,"مكمل",0,"رقم القيد","المواليد","الاسم","إسلامية","قراءة","رياضيات","إنكليزي","علوم","فنية","رياضة",0]
[38,null,null,null,null,null,null,null,null,null,null,null,"مكمل",0,"رقم القيد","المواليد","الاسم","إسلامية","قراءة","رياضيات","إنكليزي","علوم","فنية","رياضة",0]
[39,null,null,null,null,null,null,null,null,null,null,null,"مكمل",0,"رقم القيد","المواليد","الاسم","إسلامية","قراءة","رياضيات","إنكليزي","علوم","فنية","رياضة",0]
[40,null,null,null,null,null,null,null,null,null,null,null,"مكمل",0,"رقم القيد","المواليد","الاسم","إسلامية","قراءة","رياضيات","إنكليزي","علوم","فنية","رياضة",0]
[41,null,null,null,null,null,null,null,null,null,null,null,"مكمل",0,"رقم القيد","المواليد","الاسم","إسلامية","قراءة","رياضيات","إنكليزي","علوم","فنية","رياضة",0]
[42,null,null,null,null,null,null,null,null,null,null,null,"مكمل",0,"رقم القيد","المواليد","الاسم","إسلامية","قراءة","رياضيات","إنكليزي","علوم","فنية","رياضة",0]
[43,null,null,null,null,null,null,null,null,null,null,null,"مكمل",0,"رقم القيد","المواليد","الاسم","إسلامية","قراءة","رياضيات","إنكليزي","علوم","فنية","رياضة",0]
[44,null,null,null,null,null,null,null,null,null,null,null,"مكمل",0,"رقم القيد","المواليد","الاسم","إسلامية","قراءة","رياضيات","إنكليزي","علوم","فنية","رياضة",0]
[null,null,null,null,null,null,null,null,null,null,null,null,"","","","","","","","","","","","",""]
[null,null,null,null,null,null,null,null,null,null,null,null,"","","","","","","","","","","","",""]
[null,null,null,null,null,null,null,null,null,null,null,null,"","","","","","","","","","","","",""]
[null,null,null,null,null,null,null,null,null,null,null,null,"","","","","","","","","","","","",""]
[null,null,null,null,null,null,null,null,null,null,null,null,"","","","","","","","","","","","",""]
[null,null,null,null,null,null,null,null,null,null,null,null,"","","","","","","","","","","","",""]
[null,null,null,null,null,null,null,null,null,null,null,null,"","","","","","","","","","","","",""]
[null,null,null,null,null,null,null,null,null,null,null,null,"","","","","","","","","","","","",""]
[null,null,null,null,null,null,null,null,null,null,null,null,"","","","","","","","","","","","",""]
[null,null,null,null,null,null,null,null,null,null,null,null,"","","","","","","","","","","","",""]
[null,null,null,null,null,null,null,null,null,null,null,null,"","","","","","","","","","","","",""]
[null,null,null,null,null,null,null,null,null,null,null,null,"","","","","","","","","","","","",""]
[null,null,null,null,null,null,null,null,null,null,null,null,"","","","","","","","","","","","",""]
[null,null,null,null,null,null,null,null,null,null,null,null,"","","","","","","","","","","","",""]
[null,null,null,null,null,null,null,null,null,null,null,null,"","","","","","","","","","","","",""]
[null,null,null,null,null,null,null,null,null,null,null,null,"","","","","","","","","","","","",""]
[null,null,null,null,null,null,null,null,null,null,null,null,"","","","","","","","","","","","",""]
[null,null,null,null,null,null,null,null,null,null,null,null,"","","","","","","","","","","","",""]
[null,null,null,null,null,null,null,null,null,null,null,null,"","","","","","","","","","","","",""]
[null,null,null,null,null,null,null,null,null,null,null,null,"","","","","","","","","","","","",""]
[null,null,null,null,null,null,null,null,null,null,null,null,"","","","","","","","","","","","",""]
[null,null,null,null,null,null,null,null,null,null,null,null,{"$f":"IF(A67=\"\",\"\",IF(SUMPRODUCT(--(B67:L67<50))=0,\"ناجح\",\"مكمل\"))","v":""},{"$f":"IF(A67=\"\",\"\",COUNTIF($B67:$L67,\"<\"&50))","v":""},{"$f":"IF(A67=\"\",\"\",IF(AND(B67<50),$B$1,\"\"))","v":""},{"$f":"IF(A67=\"\",\"\",IF(AND(C67<50),$C$1,\"\"))","v":""},{"$f":"IF(A67=\"\",\"\",IF(AND(D67<50),$D$1,\"\"))","v":""},{"$f":"IF(A67=\"\",\"\",IF(AND(E67<50),$E$1,\"\"))","v":""},{"$f":"IF(A67=\"\",\"\",IF(AND(F67<50),$F$1,\"\"))","v":""},{"$f":"IF(A67=\"\",\"\",IF(AND(G67<50),$G$1,\"\"))","v":""},{"$f":"IF(A67=\"\",\"\",IF(AND(H67<50),$H$1,\"\"))","v":""},{"$f":"IF(A67=\"\",\"\",IF(AND(I67<50),$I$1,\"\"))","v":""},{"$f":"IF(A67=\"\",\"\",IF(AND(J67<50),$J$1,\"\"))","v":""},{"$f":"IF(A67=\"\",\"\",IF(AND(K67<50),$K$1,\"\"))","v":""},{"$f":"IF(A67=\"\",\"\",IF(AND(L67<50),$L$1,\"\"))","v":""}]
[null,null,null,null,null,null,null,null,null,null,null,null,"","","","","","","","","","","","",""]
[null,null,null,null,null,null,null,null,null,null,null,null,"","","","","","","","","","","","",""]
[null,null,null,null,null,null,null,null,null,null,null,null,"","","","","","","","","","","","",""]
[null,null,null,null,null,null,null,null,null,null,null,null,"","","","","","","","","","","","",""]
[null,null,null,null,null,null,null,null,null,null,null,null,"","","","","","","","","","","","",""]
[null,null,null,null,null,null,null,null,null,null,null,null,"","","","","","","","","","","","",""]
[null,null,null,null,null,null,null,null,null,null,null,null,"","","","","","","","","","","","",""]
[null,null,null,null,null,null,null,null,null,null,null,null,"","","","","","","","","","","","",""]
[null,null,null,null,null,null,null,null,null,null,null,null,"","","","","","","","","","","","",""]
[null,null,null,null,null,null,null,null,null,null,null,null,"","","","","","","","","","","","",""]
[null,null,null,null,null,null,null,null,null,null,null,null,"","","","","","","","","","","","",""]
[null,null,null,null,null,null,null,null,null,null,null,null,"","","","","","","","","","","","",""]
[null,null,null,null,null,null,null,null,null,null,null,null,"","","","","","","","","","","","",""]
[null,null,null,null,null,null,null,null,null,null,null,null,"","","","","","","","","","","","",""]
[null,null,null,null,null,null,null,null,null,null,null,null,"","","","","","","","","","","","",""]
[null,null,null,null,null,null,null,null,null,null,null,null,"","","","","","","","","","","","",""]
[null,null,null,null,null,null,null,null,null,null,null,null,"","","","","","","","","","","","",""]
[null,null,null,null,null,null,null,null,null,null,null,null,"","","","","","","","","","","","",""]
[null,null,null,null,null,null,null,null,null,null,null,null,"","","","","","","","","","","","",""]
[null,null,null,null,null,null,null,null,null,null,null,null,"","","","","","","","","","","","",""]
[null,null,null,null,null,null,null,null,null,null,null,null,"","","","","","","","","","","","",""]
[null,null,null,null,null,null,null,null,null,null,null,null,"","","","","","","","","","","","",""]
[null,null,null,null,null,null,null,null,null,null,null,null,"","","","","","","","","","","","",""]
[null,null,null,null,null,null,null,null,null,null,null,null,"","","","","","","","","","","","",""]
[null,null,null,null,null,null,null,null,null,null,null,null,"","","","","","","","","","","","",""]
[null,null,null,null,null,null,null,null,null,null,null,null,"","","","","","","","","","","","",""]
[null,null,null,null,null,null,null,null,null,null,null,null,"","","","","","","","","","","","",""]
[null,null,null,null,null,null,null,null,null,null,null,null,"","","","","","","","","","","","",""]
[null,null,null,null,null,null,null,null,null,null,null,null,"","","","","","","","","","","","",""]
[null,null,null,null,null,null,null,null,null,null,null,null,"","","","","","","","","","","","",""]
[null,null,null,null,null,null,null,null,null,null,null,null,"","","","","","","","","","","","",""]
[null,null,null,null,null,null,null,null,null,null,null,null,"","","","","","","","","","","","",""]
[null,null,null,null,null,null,null,null,null,null,null,null,"","","","","","","","","","","","",""]
[null,null,null,null,null,null,null,null,null,null,null,null,"","","","","","","","","","","","",""]
[null,null,null,null,null,null,null,null,null,null,null,null,"","","","","","","","","","","","",""]
[null,null,null,null,null,null,null,null,null,null,null,null,"","","","","","","","","","","","",""]
[null,null,null,null,null,null,null,null,null,null,null,null,"","","","","","","","","","","","",""]
[null,null,null,null,null,null,null,null,null,null,null,null,"","","","","","","","","","","","",""]
[null,null,null,null,null,null,null,null,null,null,null,null,"","","","","","","","","","","","",""]
[null,null,null,null,null,null,null,null,null,null,null,null,"","","","","","","","","","","","",""]
[null,null,null,null,null,null,null,null,null,null,null,null,"","","","","","","","","","","","",""]
[null,null,null,null,null,null,null,null,null,null,null,null,"","","","","","","","","","","","",""]
[null,null,null,null,null,null,null,null,null,null,null,null,"","","","","","","","","","","","",""]
[null,null,null,null,null,null,null,null,null,null,null,null,"","","","","","","","","","","","",""]
[null,null,null,null,null,null,null,null,null,null,null,null,"","","","","","","","","","","","",""]
[null,null,null,null,null,null,null,null,null,null,null,null,"","","","","","","","","","","","",""]
[null,null,null,null,null,null,null,null,null,null,null,null,"","","","","","","","","","","","",""]
[null,null,null,null,null,null,null,null,null,null,null,null,"","","","","","","","","","","","",""]
[null,null,null,null,null,null,null,null,null,null,null,null,"","","","","","","","","","","","",""]
[null,null,null,null,null,null,null,null,null,null,null,null,"","","","","","","","","","","","",""]
[null,null,null,null,null,null,null,null,null,null,null,null,"","","","","","","","","","","","",""]
[null,null,null,null,null,null,null,null,null,null,null,null,"","","","","","","","","","","","",""]
[null,null,null,null,null,null,null,null,null,null,null,null,"","","","","","","","","","","","",""]
[null,null,null,null,null,null,null,null,null,null,null,null,"","","","","","","","","","","","",""]
[null,null,null,null,null,null,null,null,null,null,null,null,"","","","","","","","","","","","",""]
[null,null,null,null,null,null,null,null,null,null,null,null,"","","","","","","","","","","","",""]
[null,null,null,null,null,null,null,null,null,null,null,null,"","","","","","","","","","","","",""]
[null,null,null,null,null,null,null,null,null,null,null,null,"","","","","","","","","","","","",""]
[null,null,null,null,null,null,null,null,null,null,null,null,"","","","","","","","","","","","",""]
[null,null,null,null,null,null,null,null,null,null,null,null,"","","","","","","","","","","","",""]
[null,null,null,null,null,null,null,null,null,null,null,null,"","","","","","","","","","","","",""]
[null,null,null,null,null,null,null,null,null,null,null,null,"","","","","","","","","","","","",""]
[null,null,null,null,null,null,null,null,null,null,null,null,"","","","","","","","","","","","",""]
[null,null,null,null,null,null,null,null,null,null,null,null,{"$f":"IF(A131=\"\",\"\",IF(SUMPRODUCT(--(B131:L131<50))=0,\"ناجح\",\"مكمل\"))","v":""},{"$f":"IF(A131=\"\",\"\",COUNTIF($B131:$L131,\"<\"&50))","v":""},{"$f":"IF(A131=\"\",\"\",IF(AND(B131<50),$B$1,\"\"))","v":""},{"$f":"IF(A131=\"\",\"\",IF(AND(C131<50),$C$1,\"\"))","v":""},{"$f":"IF(A131=\"\",\"\",IF(AND(D131<50),$D$1,\"\"))","v":""},{"$f":"IF(A131=\"\",\"\",IF(AND(E131<50),$E$1,\"\"))","v":""},{"$f":"IF(A131=\"\",\"\",IF(AND(F131<50),$F$1,\"\"))","v":""},{"$f":"IF(A131=\"\",\"\",IF(AND(G131<50),$G$1,\"\"))","v":""},{"$f":"IF(A131=\"\",\"\",IF(AND(H131<50),$H$1,\"\"))","v":""},{"$f":"IF(A131=\"\",\"\",IF(AND(I131<50),$I$1,\"\"))","v":""},{"$f":"IF(A131=\"\",\"\",IF(AND(J131<50),$J$1,\"\"))","v":""},{"$f":"IF(A131=\"\",\"\",IF(AND(K131<50),$K$1,\"\"))","v":""},{"$f":"IF(A131=\"\",\"\",IF(AND(L131<50),$L$1,\"\"))","v":""}]
[null,null,null,null,null,null,null,null,null,null,null,null,"","","","","","","","","","","","",""]
[null,null,null,null,null,null,null,null,null,null,null,null,"","","","","","","","","","","","",""]
[null,null,null,null,null,null,null,null,null,null,null,null,"","","","","","","","","","","","",""]
[null,null,null,null,null,null,null,null,null,null,null,null,"","","","","","","","","","","","",""]
[null,null,null,null,null,null,null,null,null,null,null,null,"","","","","","","","","","","","",""]
[null,null,null,null,null,null,null,null,null,null,null,null,"","","","","","","","","","","","",""]
[null,null,null,null,null,null,null,null,null,null,null,null,"","","","","","","","","","","","",""]
[null,null,null,null,null,null,null,null,null,null,null,null,"","","","","","","","","","","","",""]
[null,null,null,null,null,null,null,null,null,null,null,null,"","","","","","","","","","","","",""]
[null,null,null,null,null,null,null,null,null,null,null,null,"","","","","","","","","","","","",""]
[null,null,null,null,null,null,null,null,null,null,null,null,"","","","","","","","","","","","",""]
[null,null,null,null,null,null,null,null,null,null,null,null,"","","","","","","","","","","","",""]
[null,null,null,null,null,null,null,null,null,null,null,null,"","","","","","","","","","","","",""]
[null,null,null,null,null,null,null,null,null,null,null,null,"","","","","","","","","","","","",""]
[null,null,null,null,null,null,null,null,null,null,null,null,"","","","","","","","","","","","",""]
[null,null,null,null,null,null,null,null,null,null,null,null,"","","","","","","","","","","","",""]
[null,null,null,null,null,null,null,null,null,null,null,null,"","","","","","","","","","","","",""]
[null,null,null,null,null,null,null,null,null,null,null,null,"","","","","","","","","","","","",""]
[null,null,null,null,null,null,null,null,null,null,null,null,"","","","","","","","","","","","",""]

{"sheet":"ناجح","index":1,"n_rows":2,"n_cols":15,"rows_kept":2,"cut":false,"hidden":false,"merged":[[0,14,0,24]]}
["ت","رقم القيد","مواليد","الاسم","إسلامية","قراءة","رياضيات","إنكليزي","علوم","فنية","رياضة","الحاسبات","النتيجة",null,"المواد المكملة"]
[3,666,888,"علي",50,50,50,50,50,50,50,null,"ناجح"]

{"sheet":"مكمل","index":2,"n_rows":2,"n_cols":24,"rows_kept":2,"cut":false,"hidden":false,"merged":[[0,14,0,24]]}
["ت","رقم القيد","المواليد","الاسم","إسلامية","قراءة","رياضيات","إنكليزي","علوم","فنية","رياضة","اجتماعيات","النتيجة","عدد المواد المكملة","المواد المكملة"]
[null,null,null,null,null,null,null,null,null,50,null,null,"مكمل","","","","","","","","","","",""]